bitfinex/quotes_ETHUSD_20250822
["timestamp","ask_amount","ask_price","bid_price","bid_amount"]
[1755880864089,1.748,4762.9,4762.2,0.20632329]
[1755880864292,1.748,4762.9,4762.3,0.1853246]
[1755880864506,1.748,4762.9,4761.9,0.4381]
[1755880864507,2.2088,4762.9,4762.4,0.1853246]
[1755880864649,0.3032,4762.5,4761.1,16.90508996]
[1755880864850,0.3032,4762.5,4761.2,3.18557011]
[1755880865095,0.002,4762.1,4761.3,0.18557128]
[1755880865279,0.002,4762.1,4761.8,16.90508996]
[1755880865455,0.002,4762.1,4761.9,0.18557128]
[1755880865657,0.002,4762.1,4761.8,16.90508996]
[1755880865658,0.002,4762.1,4762.0,0.18557128]
[1755880867324,0.766,4762.1,4757.7,1.07408058]
[1755880867461,0.3052,4762.1,4759.7,16.90508996]
[1755880867660,0.02,4761.8,4760.8,0.02]
[1755880867917,0.3032,4760.9,4760.8,0.02]
[1755880868063,0.764,4760.9,4760.8,0.02]
[1755880869067,4.01,4761.3,4760.8,0.02]
[1755880869819,0.4625,4761.2,4760.8,0.02]
[1755880870130,0.2962,4760.9,4760.8,0.02]
[1755880870486,0.02,4761.8,4761.0,0.66]
[1755880870690,0.02,4762.8,4761.8,13.64835]
[1755880870950,1.748,4764.4,4762.7,0.3113]
[1755880871401,0.4625,4763.8,4762.5,16.90508996]
[1755880871589,0.4625,4763.3,4762.5,16.90508996]
[1755880871934,4.009,4764.2,4762.6,0.02099693]
[1755880871935,4.4715,4764.2,4762.6,0.02099693]
[1755880872125,1.748,4764.4,4763.0,0.3113]
[1755880872332,1.748,4764.4,4763.0,0.64243]
[1755880872493,1.748,4764.4,4763.0,0.3113]
[1755880872690,0.4625,4764.3,4762.5,3.0]
[1755880873408,0.4625,4764.3,4762.6,0.02099693]
[1755880873609,1.748,4764.4,4763.2,16.90508996]
[1755880873795,0.2962,4763.3,4761.8,0.15831568]
[1755880873995,0.2962,4763.3,4761.6,3.0]
[1755880874214,0.2962,4763.3,4761.7,1.990509]
[1755880874410,2.0442,4763.3,4761.7,1.990509]
[1755880874610,2.0442,4763.3,4761.2,3.66]
[1755880874798,0.1048,4761.8,4761.2,7.667]
[1755880875002,0.4625,4762.8,4760.8,0.02]
[1755880875204,0.1048,4761.0,4760.8,0.02]
[1755880875891,6.2165,4760.9,4760.8,0.02]
[1755880876095,3.0,4760.8,4759.8,0.02]
[1755880876291,0.1048,4759.9,4759.8,0.02]
[1755880876716,0.5673,4759.9,4759.8,0.02]
[1755880876994,0.1048,4759.9,4759.8,0.02]
[1755880878033,4.007,4760.4,4759.8,0.02]
[1755880878229,0.1048,4759.9,4759.8,0.02]
[1755880878590,0.5673,4759.9,4759.8,0.02]
[1755880879993,0.5673,4759.9,4759.8,0.021]
[1755880880398,0.1048,4759.9,4759.8,0.021]
[1755880880943,0.5673,4759.9,4759.8,0.021]
[1755880881096,4.007,4760.4,4759.8,0.021]
[1755880881434,0.1048,4759.9,4759.8,0.021]
[1755880882295,0.5673,4759.9,4759.8,0.021]
[1755880885419,0.1048,4759.9,4759.8,0.021]
[1755880885625,4.1098,4759.9,4759.8,0.021]
[1755880886750,4.1098,4759.9,4759.8,0.3323]
[1755880886751,0.1048,4759.9,4759.8,0.3323]
[1755880887043,0.1048,4759.9,4759.8,0.021]
[1755880889249,0.1048,4759.9,4759.8,0.3323]
[1755880889573,0.1048,4759.9,4759.8,1.4243]
[1755880889744,0.1048,4759.9,4759.8,17.93202704]
[1755880889948,0.1048,4759.9,4759.8,24.63648176]
[1755880890097,0.002,4760.8,4760.0,0.66]
[1755880890098,0.1048,4760.4,4760.0,0.66]
[1755880890304,0.1048,4760.4,4760.3,0.3113]
[1755880890937,0.1048,4760.4,4760.3,0.7433]
[1755880891150,0.1048,4760.4,4760.3,1.18363]
[1755880891847,0.002,4760.8,4760.3,0.75163]
[1755880892139,0.002,4760.8,4760.4,0.02100663]
[1755880892347,0.002,4760.8,4760.7,0.9713]
[1755880892500,0.002,4760.8,4760.7,13.38348931]
[1755880892699,5.752,4762.2,4760.9,0.66]
[1755880892933,5.752,4762.2,4761.1,3.66]
[1755880893132,5.752,4762.2,4761.2,0.0210031]
[1755880893322,5.752,4762.2,4761.1,0.66]
[1755880893323,5.752,4762.2,4760.7,0.66]
[1755880894005,5.752,4762.2,4760.8,0.45300487]
[1755880894233,1.749,4762.2,4761.5,3.0]
[1755880894408,4.002,4762.5,4762.1,0.3113]
[1755880894609,1.749,4763.5,4762.3,3.0]
[1755880894851,1.749,4763.5,4762.5,0.3113]
[1755880895554,1.749,4763.5,4762.5,0.7433]
[1755880895760,1.749,4763.5,4762.5,1.4033]
[1755880895918,1.749,4763.5,4762.5,6.21228624]
[1755880896114,1.749,4763.5,4762.5,11.50993087]
[1755880896462,1.749,4763.5,4762.5,3.0]
[1755880896670,2.2115,4763.5,4762.5,3.0]
[1755880896953,0.4625,4763.0,4761.4,0.432]
[1755880897113,0.4625,4763.0,4761.5,0.66]
[1755880897314,4.002,4762.6,4761.0,15.09108674]
[1755880897651,4.002,4762.6,4761.1,10.73172854]
[1755880897949,4.002,4762.6,4761.1,3.432]
[1755880898445,4.002,4762.6,4761.2,0.66]
[1755880898648,4.002,4762.6,4761.3,1.70020867]
[1755880899047,0.4393,4762.5,4761.1,3.0]
[1755880899212,1.749,4762.4,4761.1,3.0]
[1755880899910,1.749,4762.4,4761.0,13.34208674]
[1755880900525,1.749,4762.4,4761.1,3.0]
[1755880900869,1.749,4762.4,4761.2,1.63420867]
[1755880901159,1.749,4762.4,4761.1,3.0]
[1755880901160,0.2881,4761.3,4759.6,0.001]
[1755880901372,6.1863,4761.2,4759.8,0.021]
[1755880901716,6.1863,4761.2,4759.9,0.02100884]
[1755880901945,5.747,4761.2,4760.0,13.34208674]
[1755880902160,0.1048,4760.6,4760.2,3.0]
[1755880902330,0.1048,4760.6,4760.5,0.3075]
[1755880902646,1.749,4761.2,4760.5,0.3075]
[1755880902862,0.2881,4760.6,4759.8,0.021]
[1755880903016,0.7274,4760.6,4759.8,0.021]
[1755880903385,0.1048,4759.9,4759.8,0.021]
[1755880903668,0.1048,4759.9,4759.8,1.65740867]
[1755880903963,3.997,4760.2,4759.8,0.021]
[1755880904122,0.2881,4759.9,4759.8,0.021]
[1755880904319,2.0371,4759.9,4759.8,0.021]
[1755880904515,2.4764,4759.9,4759.8,0.021]
[1755880905023,6.0341,4759.9,4759.8,0.021]
[1755880905235,5.746,4759.9,4759.8,0.021]
[1755880905951,5.746,4759.9,4759.8,0.3285]
[1755880906147,3.997,4760.7,4759.8,1.09455]
[1755880906445,3.997,4760.7,4759.8,0.66145]
[1755880906661,3.997,4760.7,4759.9,0.02100884]
[1755880907013,3.997,4760.7,4759.8,0.35395]
[1755880907217,3.997,4760.7,4759.9,0.02100884]
[1755880907414,3.997,4760.7,4759.8,0.35395]
[1755880908051,0.2881,4759.9,4759.8,0.021]
[1755880908254,6.0331,4759.9,4759.8,0.021]
[1755880908759,9.4724,4759.9,4759.3,0.001]
[1755880908922,4.0993,4759.8,4759.3,0.001]
[1755880909126,4.0993,4759.8,4758.1,0.001]
[1755880909127,0.66,4759.3,4758.1,0.001]
[1755880909424,3.66,4759.1,4758.1,0.001]
[1755880909621,3.0,4758.9,4758.1,0.001]
[1755880909925,3.0,4758.7,4758.1,0.001]
[1755880910121,3.0,4758.5,4758.1,0.001]
[1755880910530,0.4393,4758.4,4758.1,0.001]
[1755880910959,0.4393,4758.3,4758.1,0.001]
[1755880911466,3.66,4758.2,4758.1,0.001]
[1755880911663,3.66,4758.2,4757.6,0.001]
[1755880911837,0.66,4758.0,4757.6,0.001]
[1755880912172,7.655,4757.9,4757.6,0.001]
[1755880912330,8.0943,4757.9,4757.6,0.001]
[1755880912531,3.4393,4757.9,4757.6,0.001]
[1755880912731,7.4343,4757.9,4757.6,0.001]
[1755880913133,8.0943,4757.9,4757.6,0.001]
[1755880913333,7.4343,4757.9,4757.6,0.001]
[1755880913635,7.4353,4757.9,4757.6,0.001]
[1755880913829,7.5401,4757.9,4757.6,0.001]
[1755880914055,4.5401,4757.9,4757.6,0.001]
[1755880915365,4.1008,4757.9,4757.6,0.001]
[1755880915863,4.5401,4757.9,4757.6,0.001]
[1755880916871,0.5441,4757.9,4757.6,0.001]
[1755880917071,4.0998,4757.9,4757.6,0.001]
[1755880917930,5.0943,4757.9,4757.6,0.001]
[1755880918330,5.3824,4757.9,4757.6,0.001]
[1755880918866,4.7224,4757.9,4757.6,0.001]
[1755880919971,3.995,4757.9,4757.6,0.001]
[1755880920137,5.467,4758.3,4757.6,0.001]
[1755880920337,0.94596789,4758.5,4757.6,0.001]
[1755880920338,2.25666789,4758.5,4757.6,0.001]
[1755880920559,3.994,4758.4,4757.6,0.001]
[1755880920875,3.994,4758.3,4757.8,0.4531]
[1755880921169,3.994,4758.3,4757.8,0.86451]
[1755880921654,3.994,4758.3,4757.8,0.43141]
[1755880921856,3.994,4758.3,4757.9,0.4331]
[1755880922058,1.75,4758.5,4758.1,13.34208674]
[1755880922273,3.994,4758.2,4758.1,16.34208674]
[1755880922460,3.994,4758.2,4757.8,0.02]
[1755880923060,1.75,4758.5,4757.8,0.02]
[1755880923348,3.993,4758.4,4757.8,0.02]
[1755880924343,1.75,4758.5,4757.8,0.02]
[1755880924344,3.993,4758.3,4757.8,0.02]
[1755880924652,0.03,4757.8,4757.6,0.4341]
[1755880924850,0.03,4757.8,4757.7,0.4331]
[1755880925059,4.023,4757.8,4757.7,0.4331]
[1755880925372,4.023,4757.8,4757.6,0.001]
[1755880925590,4.023,4757.8,4757.7,0.4331]
[1755880925886,4.023,4757.8,4757.7,0.7406]
[1755880926102,4.023,4757.8,4757.7,1.4006]
[1755880926271,0.03,4757.8,4757.7,1.54076]
[1755880926703,0.03,4757.8,4757.7,1.56177855]
[1755880926878,0.03,4757.8,4757.7,1.54076]
[1755880927301,0.03,4757.8,4757.7,0.3075]
[1755880927484,0.03,4757.8,4757.6,0.001]
[1755880927880,4.0968,4757.7,4757.6,0.001]
[1755880929625,4.0968,4757.7,4755.8,0.021]
[1755880929626,3.66,4757.6,4756.7,0.001]
[1755880929783,4.1066,4757.6,4756.7,0.001]
[1755880930126,0.66,4757.4,4756.7,0.001]
[1755880930277,3.66,4757.4,4756.7,0.001]
[1755880930620,0.96182783,4757.3,4757.2,0.001]
[1755880931293,1.62182783,4757.3,4757.2,0.001]
[1755880931619,7.95382783,4757.3,4757.2,0.001]
[1755880932174,4.95382783,4757.3,4757.2,0.001]
[1755880933275,5.26502783,4757.3,4757.2,0.001]
[1755880933477,8.92502783,4757.3,4757.2,0.001]
[1755880934413,4.93302783,4757.3,4757.2,0.001]
[1755880934584,8.92502783,4757.3,4757.2,0.001]
[1755880937278,9.37608871,4757.3,4757.2,0.001]
[1755880938125,9.37608871,4757.3,4756.7,0.001]
[1755880938126,3.66,4757.2,4756.7,0.001]
[1755880938413,0.9712,4756.9,4756.7,0.001]
[1755880938580,9.03236306,4756.9,4756.7,0.001]
[1755880938776,9.94140266,4756.9,4756.7,0.001]
[1755880939614,10.04620266,4756.9,4756.7,0.001]
[1755880939906,10.04607168,4756.9,4756.7,0.001]
[1755880940320,9.60955439,4756.9,4756.7,0.001]
[1755880940517,10.04707168,4756.9,4756.7,0.001]
[1755880940888,10.37633586,4756.9,4756.7,0.001]
[1755880941847,5.8828243,4756.9,4756.7,0.001]
[1755880941985,9.19012506,4756.9,4756.7,0.001]
[1755880942892,9.52284235,4756.9,4756.7,0.001]
[1755880943085,10.08596315,4756.9,4756.7,0.001]
[1755880943282,9.64012646,4756.9,4756.7,0.001]
[1755880944484,3.66,4756.8,4755.8,0.021]
[1755880944693,3.9712,4755.9,4755.8,0.021]
[1755880944910,10.49897817,4755.9,4755.8,0.021]
[1755880945128,10.94557817,4755.9,4755.8,0.021]
[1755880945295,0.66,4755.8,4754.8,0.021]
[1755880945631,0.9712,4754.9,4754.8,0.021]
[1755880945933,8.29591729,4754.9,4754.8,0.021]
[1755880946229,9.19357817,4754.9,4754.8,0.021]
[1755880946593,9.5148299,4754.9,4754.8,0.021]
[1755880946791,9.19357817,4754.9,4754.8,0.021]
[1755880947105,9.5148299,4754.9,4754.8,0.021]
[1755880947299,9.5158299,4754.9,4754.8,0.021]
[1755880947695,9.19457817,4754.9,4754.8,0.021]
[1755880948095,9.5158299,4754.9,4754.8,0.021]
[1755880948710,10.07816203,4754.9,4754.8,0.021]
[1755880949321,9.5158299,4754.9,4754.8,0.021]
[1755880951018,9.19457817,4754.9,4754.8,0.021]
[1755880951211,9.49845695,4754.9,4754.8,0.021]
[1755880951518,9.19457817,4754.9,4754.8,0.021]
[1755880951819,9.49845695,4754.9,4754.8,0.021]
[1755880952023,5.30637817,4754.9,4754.8,0.021]
[1755880952198,9.29937817,4754.9,4754.8,0.021]
[1755880952606,9.62873821,4754.9,4754.8,0.021]
[1755880953316,9.93261699,4754.9,4754.8,0.021]
[1755880953505,9.62873821,4754.9,4754.8,0.021]
[1755880953830,3.66,4754.8,4754.6,0.001]
[1755880954027,10.72959301,4754.7,4754.6,0.001]
[1755880954218,11.25045695,4754.7,4754.6,0.001]
[1755880954395,6.95357817,4754.7,4754.6,0.001]
[1755880954600,7.05837817,4754.7,4754.6,0.001]
[1755880954818,11.05137817,4754.7,4754.6,0.001]
[1755880955020,3.66,4754.6,4754.5,0.06003]
[1755880955323,9.19457817,4754.6,4754.5,0.06003]
[1755880955828,8.54157817,4754.6,4754.5,0.06003]
[1755880956030,8.20886088,4754.6,4754.5,0.06003]
[1755880956203,7.7578,4754.6,4754.5,0.06003]
[1755880956406,8.53964768,4754.6,4754.5,0.06003]
[1755880956604,8.85084768,4754.6,4754.5,0.06003]
[1755880956899,8.53964768,4754.6,4754.5,0.06003]
[1755880957431,9.29744768,4754.6,4754.5,0.06003]
[1755880958199,9.85830414,4754.6,4754.5,0.06003]
[1755880958550,9.85830414,4754.6,4753.6,0.001]
[1755880958551,3.66,4754.5,4753.6,0.001]
[1755880958750,17.29478674,4754.2,4753.6,0.001]
[1755880959042,22.33114713,4754.2,4753.6,0.001]
[1755880959244,23.36132109,4754.2,4753.6,0.001]
[1755880959402,20.49477378,4754.2,4753.6,0.001]
[1755880959772,9.00049412,4754.2,4753.6,0.001]
[1755880960043,4.7026431,4754.2,4753.6,0.001]
[1755880960202,4.81505578,4754.2,4754.1,0.303]
[1755880960544,4.81505578,4754.2,4754.1,0.001]
[1755880960700,14.57647307,4754.2,4754.1,0.001]
[1755880961159,15.01367307,4754.2,4754.1,0.001]
[1755880961299,14.57647307,4754.2,4754.1,0.001]
[1755880961500,13.95105578,4754.2,4754.1,0.001]
[1755880961701,13.95105578,4754.2,4754.1,0.303]
[1755880962011,10.95105578,4754.2,4754.1,0.303]
[1755880962398,10.50192539,4754.2,4754.1,0.303]
[1755880962612,13.50192539,4754.2,4754.1,0.001]
[1755880962812,14.24547195,4754.2,4754.1,0.001]
[1755880963017,15.01538924,4754.2,4754.1,0.001]
[1755880963448,14.24547195,4754.2,4754.1,0.001]
[1755880963676,9.96077195,4754.2,4754.1,0.001]
[1755880963838,13.95277195,4754.2,4754.1,0.303]
[1755880964359,13.95277195,4754.2,4754.1,0.001]
[1755880964737,13.95277195,4754.2,4754.1,0.303]
[1755880964938,13.95277195,4754.2,4754.1,0.053]
[1755880965150,13.95277195,4754.2,4753.6,0.4675]
[1755880965151,3.66,4754.1,4753.6,0.001]
[1755880965450,0.7648,4753.9,4753.6,0.001]
[1755880965651,1.21564656,4753.9,4753.6,0.001]
[1755880965853,1.21564656,4753.9,4753.8,0.323]
[1755880966078,0.55564656,4753.9,4753.8,0.323]
[1755880966242,7.0958,4753.9,4753.8,0.6661]
[1755880966673,4.0958,4753.9,4753.8,0.6661]
[1755880967371,5.20820438,4753.9,4753.8,0.323]
[1755880967570,8.77379472,4753.9,4753.8,0.323]
[1755880967745,8.20820438,4753.9,4753.8,0.021]
[1755880968072,8.77379472,4753.9,4753.8,0.021]
[1755880968244,9.05599816,4753.9,4753.8,0.021]
[1755880968773,8.76329816,4753.9,4753.8,0.021]
[1755880968978,8.20820438,4753.9,4753.8,0.323]
[1755880969670,7.54820438,4753.9,4753.8,0.323]
[1755880969978,0.55720438,4753.9,4753.8,0.6661]
[1755880970176,4.0958,4753.9,4753.8,0.323]
[1755880970349,4.54820438,4753.9,4753.8,0.021]
[1755880971289,4.54820438,4753.9,4753.8,0.323]
[1755880971452,4.54820438,4753.9,4753.8,0.6661]
[1755880971977,4.54820438,4753.9,4753.8,0.323]
[1755880972467,4.54820438,4753.9,4753.8,0.021]
[1755880972468,8.83330438,4753.9,4753.8,0.021]
[1755880972641,9.39906383,4753.9,4753.8,0.021]
[1755880972847,8.83330438,4753.9,4753.8,0.021]
[1755880973247,9.12465387,4753.9,4753.8,0.021]
[1755880973763,9.12466004,4753.9,4753.8,0.021]
[1755880974073,9.1246607,4753.9,4753.8,0.021]
[1755880974243,4.23055698,4753.9,4753.8,0.323]
[1755880974588,8.66984769,4753.9,4753.8,0.021]
[1755880974739,8.10240438,4753.9,4753.8,0.021]
[1755880974940,8.2206233,4753.9,4753.8,0.021]
[1755880975154,8.00998503,4753.9,4753.8,0.3141143]
[1755880975757,7.44240438,4753.9,4753.8,0.0121143]
[1755880976083,8.00998567,4753.9,4753.8,0.0121143]
[1755880976299,8.66998567,4753.9,4753.8,0.0121143]
[1755880976658,8.66998567,4753.9,4753.8,0.3141143]
[1755880977596,7.44240438,4753.9,4753.8,0.3141143]
[1755880978668,8.00998567,4753.9,4753.8,0.0121143]
[1755880979014,8.27893578,4753.9,4753.8,0.0121143]
[1755880979167,9.00883578,4753.9,4753.8,0.0121143]
[1755880979568,9.12709566,4753.9,4753.8,0.0121143]
[1755880980508,9.21142066,4753.9,4753.8,0.0121143]
[1755880981498,8.47952224,4753.9,4753.8,0.0121143]
[1755880981695,9.53037658,4753.9,4753.8,0.0121143]
[1755880981899,9.12508719,4753.9,4753.8,0.0121143]
[1755880982082,10.26024277,4753.9,4753.8,0.0121143]
[1755880982478,10.36504277,4753.9,4753.8,0.0121143]
[1755880982679,8.49998719,4753.9,4753.8,0.0121143]
[1755880982875,4.60865304,4753.9,4753.8,0.0121143]
[1755880983076,5.59565304,4753.9,4753.8,0.0121143]
[1755880983276,4.54420438,4753.9,4753.8,0.3141143]
[1755880983477,0.55720438,4753.9,4753.8,0.3141143]
[1755880983717,0.55720438,4753.9,4753.8,0.6572143]
[1755880983718,0.1048,4753.9,4753.8,0.6572143]
[1755880984006,4.0918,4753.9,4753.8,0.6572143]
[1755880984571,4.0918,4753.9,4753.8,0.3141143]
[1755880984830,4.0918,4753.9,4753.8,0.0121143]
[1755880984996,4.7518,4753.9,4753.8,0.0121143]
[1755880985513,4.0918,4753.9,4753.8,0.0121143]
[1755880985717,5.93549783,4753.9,4753.8,0.0121143]
[1755880985920,8.93549783,4753.9,4753.8,0.0121143]
[1755880986576,8.93449783,4753.9,4753.8,0.0121143]
[1755880986778,4.21859783,4753.9,4753.8,0.0121143]
[1755880987117,7.73434811,4753.9,4753.8,0.2257143]
[1755880987285,7.54457255,4753.9,4753.8,0.2257143]
[1755880987904,0.002,4754.1,4753.8,0.3592143]
[1755880988208,0.002,4754.1,4753.8,0.2257143]
[1755880988376,3.986,4754.0,4753.8,0.2257143]
[1755880988588,3.986,4754.0,4753.9,0.1335]
[1755880988794,3.986,4754.0,4753.9,0.3471]
[1755880990322,0.002,4754.1,4753.9,0.3471]
[1755880990323,0.002,4754.1,4753.9,1.0071]
[1755880990494,0.002,4754.1,4754.0,0.1335]
[1755880990817,0.002,4754.1,4754.0,0.3471]
[1755880992036,0.002,4754.1,4754.0,0.2136]
[1755880992623,0.002,4754.1,4754.0,0.3471]
[1755880994629,0.002,4754.1,4754.0,3.80112143]
[1755880994856,0.002,4754.1,4754.0,0.68312143]
[1755880995307,0.002,4754.1,4754.0,0.2136]
[1755880995718,0.002,4754.1,4754.0,0.3471]
[1755880996532,0.002,4754.1,4754.0,0.36813491]
[1755880996841,0.002,4754.6,4754.1,0.66]
[1755880997005,0.002,4754.6,4754.5,17.13663559]
[1755880997346,0.002,4754.6,4754.5,18.91840255]
[1755880997541,0.002,4754.6,4753.8,0.0121143]
[1755880997704,0.4546,4754.5,4753.8,0.0121143]
[1755880997904,2.2066,4754.5,4753.8,0.0121143]
[1755880998203,0.1048,4753.9,4753.8,0.0121143]
[1755880998407,4.0858,4753.9,4753.8,0.0121143]
[1755880999031,4.5404,4753.9,4753.8,0.0121143]
[1755880999234,7.8472,4753.9,4753.8,0.0121143]
[1755880999732,8.5072,4753.9,4753.8,0.0121143]
[1755881000730,8.66829751,4753.9,4753.8,0.0121143]
[1755881000914,7.8472,4753.9,4753.8,0.0121143]
[1755881002528,4.0858,4753.9,4753.8,0.0121143]
[1755881002721,4.8472,4753.9,4753.8,0.0121143]
[1755881004233,0.1048,4753.9,4753.8,0.2258143]
[1755881004446,4.0848,4753.9,4753.8,0.2258143]
[1755881005042,4.0848,4753.9,4753.8,0.0121143]
[1755881006225,4.0848,4753.9,4753.8,0.2258143]
[1755881006635,4.0848,4753.9,4753.8,0.3593143]
[1755881007325,0.1048,4754.0,4753.8,17.41716535]
[1755881007521,0.1048,4754.0,4753.9,4.89845556]
[1755881007853,0.1048,4754.0,4753.9,5.0911202]
[1755881009121,0.002,4754.6,4754.0,30.66]
[1755881009452,0.002,4754.6,4754.5,0.2137]
[1755881010144,0.002,4754.6,4754.5,0.3472]
[1755881010920,0.002,4754.6,4754.5,0.2137]
[1755881012226,0.002,4754.6,4753.9,1.7439202]
[1755881012445,0.002,4754.6,4754.0,1.51548856]
[1755881012640,0.002,4754.6,4754.5,0.2137]
[1755881013040,0.002,4754.6,4754.5,0.3472]
[1755881013449,0.3088,4754.6,4753.8,0.0121143]
[1755881015123,0.4546,4754.5,4753.8,0.0121143]
[1755881015449,3.976,4754.4,4753.8,0.0121143]
[1755881017931,3.976,4754.4,4753.9,0.02103536]
[1755881018654,3.976,4754.4,4753.8,0.0121143]
[1755881019426,4.4221,4754.4,4753.8,0.0121143]
[1755881019829,0.1048,4753.9,4753.8,0.0121143]
[1755881020054,0.1048,4753.9,4753.8,0.2258143]
[1755881021334,0.1048,4753.9,4753.8,0.3593143]
[1755881021729,0.1048,4753.9,4753.8,13.1509361]
[1755881022060,0.1048,4754.4,4753.9,0.66]
[1755881022226,0.1048,4754.4,4754.3,0.2137]
[1755881022427,0.1048,4754.4,4754.3,0.23473359]
[1755881022633,0.1048,4754.4,4754.3,0.2137]
[1755881022857,0.1048,4754.4,4754.3,0.54842]
[1755881024078,0.1048,4754.4,4754.3,0.33472]
[1755881024239,0.1048,4754.4,4753.8,2.1539923]
[1755881024439,0.1048,4754.1,4753.8,0.0121143]
[1755881025243,0.1048,4754.1,4754.0,0.2137]
[1755881025441,0.002,4754.6,4754.2,3.0]
[1755881025442,0.1048,4754.5,4754.2,3.0]
[1755881025655,0.002,4754.6,4754.5,3.66]
[1755881025856,0.002,4754.6,4754.5,15.59822146]
[1755881026079,0.002,4754.6,4754.5,15.11968446]
[1755881026242,0.002,4754.6,4754.5,11.86260846]
[1755881026437,0.002,4754.6,4754.5,9.40460846]
[1755881026873,0.002,4754.6,4754.5,6.08710846]
[1755881027184,0.002,4754.6,4754.5,21.18585105]
[1755881027679,0.002,4754.6,4754.5,21.29292635]
[1755881027848,0.002,4754.6,4754.5,27.96274005]
[1755881028042,0.002,4754.6,4754.5,21.34735105]
[1755881028246,0.002,4754.6,4754.5,19.70757305]
[1755881028466,0.002,4754.6,4754.5,21.46037436]
[1755881028670,0.002,4754.6,4754.5,1.98123731]
[1755881028841,0.1068,4754.6,4753.9,0.1048]
[1755881029246,0.1068,4754.6,4754.0,0.66]
[1755881030544,0.1068,4754.6,4754.1,0.02103447]
[1755881030744,0.1068,4754.6,4754.5,0.2137]
[1755881030972,0.1068,4754.6,4754.5,0.2347327]
[1755881031575,0.002,4754.6,4754.5,17.27155105]
[1755881031777,0.002,4754.6,4754.5,22.16918616]
[1755881032441,0.002,4754.6,4754.5,19.00918616]
[1755881034057,0.002,4754.6,4754.5,4.73763511]
[1755881034258,0.8403,4754.6,4754.5,3.0]
[1755881034917,0.8403,4754.6,4753.8,20.90123482]
[1755881034918,0.8403,4754.6,4753.8,0.0121143]
[1755881035173,0.1048,4753.9,4753.8,0.0121143]
[1755881035549,0.8383,4753.9,4753.8,0.0121143]
[1755881036051,0.1048,4753.9,4753.8,0.0121143]
[1755881036466,0.1048,4753.9,4753.8,3.0121143]
[1755881036667,0.1048,4753.9,4753.8,5.22154141]
[1755881037149,0.1048,4754.2,4753.9,0.66]
[1755881037883,0.2874,4754.0,4753.8,0.0121143]
[1755881038257,0.7335,4754.0,4753.8,0.0121143]
[1755881038461,0.4461,4753.9,4753.8,0.0121143]
[1755881038898,0.7335,4753.9,4753.8,0.0121143]
[1755881039299,2.4845,4753.9,4753.8,0.0121143]
[1755881042170,1.751,4753.9,4753.8,0.0121143]
[1755881042372,0.4481,4754.6,4753.8,1.70573778]
[1755881042572,0.4481,4754.6,4753.9,0.02103536]
[1755881042793,0.002,4754.6,4754.0,0.18665376]
[1755881042981,0.002,4754.6,4754.1,0.20768823]
[1755881043184,0.002,4754.6,4754.2,17.10777428]
[1755881043402,0.002,4754.6,4754.3,1.71288088]
[1755881043599,0.002,4754.6,4754.4,0.18659697]
[1755881043803,0.002,4754.6,4754.5,0.18659697]
[1755881046087,0.7355,4754.6,4754.5,0.18659697]
[1755881046995,6.4495,4754.6,4753.8,0.0121143]
[1755881047175,6.0034,4754.6,4753.9,0.18669516]
[1755881047375,0.4461,4754.5,4754.0,0.18669516]
[1755881047681,4.4091,4754.4,4754.1,0.18669516]
[1755881047877,4.4091,4754.4,4754.2,0.18669516]
[1755881048083,3.963,4754.4,4754.3,0.18669516]
[1755881048278,4.2691,4754.4,4754.3,0.18669516]
[1755881048478,4.3739,4754.4,4754.3,0.18669516]
[1755881048702,4.8113,4754.4,4754.3,0.18669516]
[1755881049671,0.002,4754.6,4754.3,0.18669516]
[1755881049876,0.4374,4754.5,4754.4,0.18669516]
[1755881050070,0.7435,4754.5,4754.4,0.18669516]
[1755881051211,0.002,4754.6,4754.4,0.18669516]
[1755881051422,0.002,4754.6,4754.5,0.18669516]
[1755881052107,0.002,4754.6,4754.5,0.18662901]
[1755881052307,0.002,4754.6,4754.5,0.18661857]
[1755881052678,0.002,4754.6,4754.5,0.18662467]
[1755881053117,0.002,4754.6,4754.5,1.24875575]
[1755881054180,0.002,4754.6,4754.5,1.03505575]
[1755881054410,0.002,4754.6,4754.5,0.18662467]
[1755881054607,0.002,4754.6,4754.5,0.40032467]
[1755881055211,0.002,4754.6,4754.5,0.40039744]
[1755881055508,0.002,4754.6,4754.5,0.18669744]
[1755881059610,0.002,4754.6,4754.5,0.40039744]
[1755881059823,0.002,4755.1,4754.5,1.80042174]
[1755881060015,0.002,4755.6,4754.5,1.80042174]
[1755881060016,0.002,4755.6,4755.1,3.66]
[1755881060178,0.002,4755.6,4755.2,0.18669744]
[1755881060510,0.4394,4755.6,4755.3,0.2077266]
[1755881060881,0.1048,4755.4,4755.3,0.02102916]
[1755881061082,0.1048,4755.4,4755.3,0.18658496]
[1755881062606,0.1068,4755.4,4755.3,0.18658496]
[1755881063813,0.002,4755.6,4755.3,0.40028496]
[1755881064012,0.002,4755.6,4755.5,13.3895186]
[1755881064325,0.002,4755.6,4755.5,13.57610356]
[1755881064532,0.1068,4755.6,4755.5,16.78980356]
[1755881064886,0.1068,4755.6,4755.5,17.44980356]
[1755881065087,0.1048,4756.2,4755.6,9.762129]